bitfinex-derivatives/quotes_BTCF0:USTF0_20240829
["timestamp","ask_amount","ask_price","bid_price","bid_amount"]
[1724960243545,0.02270027,59610.0,59606.0,0.29]
[1724960243755,0.3608,59617.0,59606.0,0.29]
[1724960244045,0.3608,59617.0,59611.0,0.29]
[1724960244346,0.3608,59623.0,59614.0,0.3608]
[1724960244850,0.3608,59623.0,59616.0,0.29]
[1724960245147,0.02359265,59623.0,59621.0,0.3608]
[1724960245352,0.5388,59642.0,59621.0,0.3608]
[1724960245353,0.083811,59643.0,59622.0,0.50316]
[1724960245540,0.083804,59648.0,59639.0,0.29]
[1724960245742,0.3608,59653.0,59644.0,0.6508]
[1724960245949,0.3608,59653.0,59643.0,0.00025165]
[1724960245950,0.38427474,59653.0,59643.0,0.00025165]
[1724960246253,0.3608,59648.0,59636.0,0.3608]
[1724960246556,0.083815,59640.0,59636.0,0.3608]
[1724960246848,0.3608,59650.0,59639.0,0.001]
[1724960247052,0.3608,59645.0,59639.0,0.001]
[1724960247248,0.00025021,59648.0,59644.0,0.3608]
[1724960247552,0.083807,59646.0,59644.0,0.3608]
[1724960247847,0.38406764,59648.0,59639.0,0.3618]
[1724960248448,0.083811,59643.0,59639.0,0.3608]
[1724960248836,0.10707264,59648.0,59639.0,0.3608]
[1724960249247,0.10707264,59648.0,59647.0,0.3608]
[1724960249451,0.02326764,59648.0,59647.0,0.3608]
[1724960251741,0.02326764,59648.0,59647.0,0.3618]
[1724960252253,1.48702764,59648.0,59639.0,0.3608]
[1724960252459,0.58037164,59648.0,59639.0,0.3608]
[1724960252759,0.58037164,59648.0,59647.0,0.001]
[1724960252946,0.21957164,59648.0,59647.0,0.001]
[1724960253349,0.02326764,59648.0,59646.0,0.3608]
[1724960253549,0.02326764,59648.0,59647.0,0.083805]
[1724960253751,0.02326764,59648.0,59647.0,0.443805]
[1724960253978,0.1125,59666.0,59647.0,0.36]
[1724960254148,0.083787,59660.0,59659.0,0.3608]
[1724960254349,0.083774,59670.0,59654.0,0.3608]
[1724960254545,0.083786,59661.0,59654.0,0.3608]
[1724960255145,0.38746653,59667.0,59660.0,0.3608]
[1724960255146,0.01830452,59667.0,59660.0,0.3608]
[1724960255361,0.444565,59676.0,59660.0,0.3608]
[1724960255546,0.3608,59676.0,59660.0,0.3608]
[1724960255752,0.001,59661.0,59660.0,0.3608]
[1724960256947,0.001,59661.0,59660.0,0.444587]
[1724960257142,0.01904958,59674.0,59660.0,0.444587]
[1724960257348,0.3608,59676.0,59665.0,0.3608]
[1724960257561,0.083778,59666.0,59665.0,0.36105144]
[1724960258259,0.067778,59666.0,59665.0,0.36105144]
[1724960258448,0.512356,59666.0,59665.0,0.00025144]
[1724960259064,0.428578,59666.0,59665.0,0.00025144]
[1724960259265,0.38013734,59676.0,59665.0,0.00025144]
[1724960259554,0.3608,59676.0,59665.0,0.00025144]
[1724960259760,0.01861353,59676.0,59668.0,0.3608]
[1724960259952,0.3608,59683.0,59668.0,0.3608]
[1724960259953,0.083767,59674.0,59668.0,0.3608]
[1724960260258,0.083754,59684.0,59668.0,0.3608]
[1724960260259,0.3608,59679.0,59668.0,0.3608]
[1724960260562,0.083762,59678.0,59668.0,0.3608]
[1724960260755,0.083774,59669.0,59668.0,0.3608]
[1724960261148,0.083778,59666.0,59665.0,0.00025144]
[1724960261549,0.083794,59655.0,59654.0,0.01858172]
[1724960261750,0.083794,59655.0,59649.0,0.3608]
[1724960261751,0.3608,59655.0,59649.0,0.3608]
[1724960261956,0.083791,59658.0,59654.0,0.3608]
[1724960262750,0.083792,59656.0,59654.0,0.3608]
[1724960262954,0.3608,59661.0,59654.0,0.3608]
[1724960262955,0.083794,59655.0,59654.0,0.3608]
[1724960263662,0.083793,59656.0,59654.0,0.3608]
[1724960263963,0.00025073,59662.0,59654.0,0.3608]
[1724960263964,0.083794,59655.0,59654.0,0.3608]
[1724960264354,0.01885889,59662.0,59654.0,0.3608]
[1724960264549,0.08403473,59662.0,59654.0,0.3608]
[1724960264855,0.083786,59661.0,59654.0,0.3608]
[1724960265370,0.083786,59661.0,59654.0,0.444595]
[1724960265558,0.00025073,59662.0,59659.0,0.3608]
[1724960265752,0.00025073,59662.0,59661.0,0.083785]
[1724960266464,0.00025073,59662.0,59659.0,0.3608]
[1724960266858,0.00025073,59662.0,59661.0,0.083785]
[1724960270271,0.083753,59684.0,59661.0,1.10284]
[1724960270571,0.01826071,59684.0,59680.0,0.3608]
[1724960270863,0.083749,59687.0,59680.0,0.3608]
[1724960271063,0.36913061,59690.0,59680.0,0.3608]
[1724960271263,0.083753,59684.0,59680.0,0.3608]
[1724960271467,0.37980948,59690.0,59680.0,0.3608]
[1724960271860,0.083752,59685.0,59680.0,0.3608]
[1724960272058,0.083754,59684.0,59680.0,0.3608]
[1724960272764,0.083755,59683.0,59680.0,0.3608]
[1724960272972,0.083757,59681.0,59680.0,0.3608]
[1724960273276,0.3608,59690.0,59680.0,0.3608]
[1724960273673,0.083751,59686.0,59680.0,0.3608]
[1724960274170,0.083751,59686.0,59680.0,0.41048737]
[1724960274368,0.3608,59690.0,59681.0,0.04968737]
[1724960274568,0.37960382,59690.0,59682.0,0.04968737]
[1724960274770,0.37960382,59690.0,59686.0,0.08375]
[1724960275164,0.08375,59686.0,59685.0,0.04968737]
[1724960275366,0.083752,59685.0,59684.0,0.04968737]
[1724960275566,0.083753,59684.0,59683.0,0.04968737]
[1724960275873,0.083752,59685.0,59681.0,0.04968737]
[1724960276171,0.083752,59685.0,59680.0,0.3608]
[1724960276172,0.083757,59681.0,59680.0,0.04968737]
[1724960276369,0.3608,59686.0,59680.0,0.04968737]
[1724960276675,0.083757,59681.0,59680.0,0.04968737]
[1724960277072,0.083759,59680.0,59679.0,0.00025144]
[1724960277280,0.3608,59693.0,59679.0,0.06653445]
[1724960277479,0.083751,59686.0,59684.0,0.04895166]
[1724960277970,0.3608,59693.0,59684.0,0.04895166]
[1724960277971,0.083752,59685.0,59684.0,0.04895166]
[1724960278177,0.083757,59681.0,59680.0,0.06526888]
[1724960278365,0.083759,59680.0,59679.0,0.06552032]
[1724960278561,0.083759,59680.0,59679.0,0.00025144]
[1724960279369,1.630998,59680.0,59679.0,0.00025144]
[1724960279565,0.083771,59671.0,59663.0,0.3608]
[1724960279764,0.083781,59664.0,59663.0,0.3608]
[1724960280467,0.08379,59658.0,59657.0,0.3608]
[1724960280768,0.00025144,59669.0,59657.0,0.3608]
[1724960280974,0.3608,59667.0,59657.0,0.3608]
[1724960281370,0.083786,59661.0,59657.0,0.3608]
[1724960281577,0.083785,59662.0,59657.0,0.3608]
[1724960281781,0.083785,59662.0,59652.0,0.00025144]
[1724960281782,0.3608,59660.0,59652.0,0.00025144]
[1724960281971,0.083781,59664.0,59657.0,0.3608]
[1724960282174,0.36,59666.0,59657.0,0.3608]
[1724960282380,1.24663,59666.0,59657.0,0.3608]
[1724960282566,0.50284,59665.0,59657.0,0.3608]
[1724960282767,0.083797,59653.0,59652.0,0.00025144]
[1724960283577,0.3608,59656.0,59652.0,0.00025144]
[1724960283782,0.083797,59653.0,59652.0,0.00025144]
[1724960284281,0.083801,59650.0,59649.0,0.3608]
[1724960284681,0.586721,59650.0,59649.0,0.3608]
[1724960284874,1.186721,59650.0,59649.0,0.3608]
[1724960285882,1.186721,59650.0,59649.0,0.12775699]
[1724960285883,1.10292,59650.0,59649.0,0.12775699]
[1724960286179,1.186721,59650.0,59649.0,0.12775699]
[1724960286382,1.186721,59650.0,59649.0,0.22606996]
[1724960286780,0.586721,59650.0,59649.0,0.22606996]
[1724960286968,1.186721,59650.0,59649.0,0.22607631]
[1724960287175,1.186721,59650.0,59649.0,0.12775699]
[1724960287569,0.01865703,59653.0,59649.0,0.75156124]
[1724960287773,0.08404644,59655.0,59652.0,0.09827956]
[1724960287969,0.10312515,59655.0,59653.0,0.12775699]
[1724960288172,0.10312515,59655.0,59652.0,0.09827956]
[1724960288173,0.083795,59654.0,59652.0,0.09827956]
[1724960288488,0.01933015,59655.0,59654.0,0.16468493]
[1724960288781,0.3242,59662.0,59654.0,0.89250198]
[1724960288982,0.3242,59662.0,59661.0,0.16468493]
[1724960289166,0.3242,59674.0,59664.0,0.083781]
[1724960289373,0.083762,59678.0,59673.0,0.52548493]
[1724960289675,0.083763,59677.0,59675.0,0.08181081]
[1724960289873,0.083764,59676.0,59675.0,0.08181081]
[1724960290186,0.3608,59677.0,59671.0,0.08181081]
[1724960290382,0.3608,59677.0,59673.0,0.16468493]
[1724960290680,0.01912177,59680.0,59674.0,0.3608]
[1724960290885,0.00025144,59682.0,59679.0,0.60729574]
[1724960291072,0.00025144,59682.0,59681.0,0.16468493]
[1724960291281,0.00025144,59682.0,59681.0,0.29238197]
[1724960291774,0.00025144,59682.0,59681.0,0.12769704]
[1724960291972,0.00025144,59682.0,59681.0,0.08168439]
[1724960292173,0.08400744,59682.0,59677.0,0.08168439]
[1724960292377,0.08400744,59682.0,59680.0,0.06534846]
[1724960292576,0.86348,59681.0,59680.0,0.04902543]
[1724960292782,0.86348,59681.0,59670.0,0.08193583]
[1724960292783,0.87881096,59681.0,59675.0,0.06534846]
[1724960292984,0.09908996,59680.0,59678.0,0.04902603]
[1724960293185,0.3608,59681.0,59675.0,0.04902603]
[1724960293186,0.083763,59677.0,59675.0,0.04902603]
[1724960293386,0.7208,59681.0,59674.0,0.04902603]
[1724960293387,0.083766,59675.0,59674.0,0.04902603]
[1724960293682,0.083769,59673.0,59672.0,0.04902603]
[1724960293989,0.86356,59674.0,59653.0,0.1133]
[1724960294176,0.3608,59667.0,59662.0,0.16468493]
[1724960294477,0.083782,59664.0,59662.0,0.16468493]
[1724960294677,0.36897928,59667.0,59653.0,0.1133]
[1724960294883,0.083784,59663.0,59659.0,0.16468493]
[1724960295487,0.083786,59661.0,59659.0,0.16468493]
[1724960295782,0.38776569,59667.0,59660.0,0.3608]
[1724960295783,0.37958641,59667.0,59660.0,0.3608]
[1724960295977,0.37958641,59667.0,59666.0,0.16468493]
[1724960296781,0.083784,59662.0,59655.0,0.36105144]
[1724960297092,0.37958641,59667.0,59659.0,0.16468493]
[1724960297273,0.083779,59666.0,59661.0,0.16468493]
[1724960297671,0.37958641,59667.0,59661.0,0.16468493]
[1724960298379,0.083784,59662.0,59661.0,0.16468493]
[1724960298676,0.01878641,59667.0,59662.0,0.16468493]
[1724960299676,0.10256441,59667.0,59662.0,0.16468493]
[1724960299872,0.08378,59665.0,59662.0,0.16468493]
[1724960300078,0.083784,59662.0,59655.0,0.36105144]
[1724960300274,0.3608,59659.0,59655.0,0.16493637]
[1724960300582,0.36,59663.0,59655.0,0.00025144]
[1724960300583,0.083792,59656.0,59655.0,0.00025144]
[1724960300778,0.444586,59661.0,59656.0,0.16468493]
[1724960301178,0.00831994,59661.0,59655.0,0.00025144]
[1724960301386,0.3608,59658.0,59655.0,0.16493637]
[1724960301682,0.00835349,59661.0,59655.0,0.16493637]
[1724960301888,0.3608,59658.0,59655.0,0.16493637]
[1724960302192,0.083792,59656.0,59655.0,0.16493637]
[1724960302982,0.3608,59658.0,59655.0,0.16493637]
[1724960304494,0.01555246,59662.0,59656.0,0.16468493]
[1724960304695,0.083781,59664.0,59656.0,0.16468493]
[1724960304880,0.083791,59657.0,59656.0,0.16468493]
[1724960305278,0.083785,59662.0,59656.0,0.52548493]
[1724960305479,0.01882561,59664.0,59662.0,0.16468493]
[1724960305686,0.00025144,59667.0,59663.0,0.16468493]
[1724960306098,0.00025144,59667.0,59666.0,0.16468493]
[1724960306385,0.01912572,59667.0,59666.0,0.16468493]
[1724960306591,0.00025144,59667.0,59666.0,0.16468493]
[1724960307488,0.01881506,59667.0,59661.0,0.083785]
[1724960307694,0.00025144,59667.0,59663.0,0.16468493]
[1724960308186,0.00025144,59667.0,59657.0,0.1089]
[1724960308381,0.083781,59665.0,59662.0,0.16468493]
[1724960308591,0.3608,59664.0,59656.0,0.3608]
[1724960308791,0.3608,59664.0,59656.0,0.52548493]
[1724960309087,0.083788,59660.0,59656.0,0.52548493]
[1724960309595,0.083789,59659.0,59656.0,0.52548493]
[1724960310881,0.083784,59663.0,59656.0,0.52548493]
[1724960311096,0.3608,59664.0,59663.0,0.16468493]
[1724960311997,0.37953208,59664.0,59663.0,0.16468493]
[1724960312291,0.01873208,59664.0,59663.0,0.16468493]
[1724960312491,0.08378,59665.0,59663.0,0.16468493]
[1724960312794,0.08378,59665.0,59655.0,0.00025144]
[1724960312795,0.083792,59656.0,59655.0,0.00025144]
[1724960313589,0.586672,59656.0,59655.0,0.00025144]
[1724960315299,1.10288,59656.0,59642.0,0.3608]
[1724960315489,0.3608,59651.0,59642.0,0.52548493]
[1724960315691,0.083804,59648.0,59642.0,0.52548493]
[1724960316196,0.083804,59648.0,59643.0,0.16468493]
[1724960316899,0.083806,59647.0,59643.0,0.16468493]
[1724960317097,0.36105144,59651.0,59643.0,0.16468493]
[1724960317098,0.37850828,59651.0,59643.0,0.16468493]
[1724960318895,0.083802,59649.0,59643.0,0.16468493]
[1724960319092,0.37850828,59651.0,59643.0,0.16468493]
[1724960319293,0.37850828,59651.0,59650.0,0.16468493]
[1724960319697,0.46230728,59651.0,59650.0,0.16468493]
[1724960321698,0.083806,59647.0,59642.0,0.36228]
[1724960321899,0.083806,59647.0,59644.0,0.16468493]
[1724960322197,0.083808,59645.0,59644.0,0.16468493]
[1724960322395,0.083816,59639.0,59630.0,0.3608]
[1724960322598,0.083823,59634.0,59633.0,0.16468493]
[1724960323194,0.09224333,59638.0,59633.0,0.16468493]
[1724960323400,0.3608,59639.0,59633.0,0.16468493]
[1724960323401,0.37899864,59639.0,59633.0,0.16468493]
[1724960323717,0.37899864,59639.0,59636.0,0.16468493]
[1724960324006,0.01819864,59639.0,59636.0,0.16468493]
[1724960324206,0.00025144,59642.0,59636.0,0.16468493]
[1724960325105,0.01825908,59642.0,59638.0,0.16468493]
[1724960325405,0.083817,59639.0,59638.0,0.16468493]
[1724960325908,1.46384,59639.0,59630.0,0.36105144]
[1724960326094,0.3608,59631.0,59630.0,0.16493637]
[1724960326404,0.444628,59631.0,59630.0,0.16493637]
[1724960326906,0.444628,59631.0,59621.0,0.3608]
[1724960326907,0.083835,59626.0,59621.0,0.3608]
[1724960327101,1.4816738,59631.0,59625.0,0.16468493]
[1724960327102,0.3785938,59631.0,59625.0,0.16468493]
[1724960327307,0.3785938,59631.0,59630.0,0.16468493]
[1724960327505,0.0177938,59631.0,59630.0,0.16468493]
[1724960327801,0.00844229,59638.0,59630.0,0.16468493]
[1724960328003,0.03291242,59637.0,59636.0,0.16468493]
[1724960328218,0.00025144,59639.0,59636.0,0.16468493]
[1724960328806,0.42486644,59640.0,59636.0,0.16468493]
[1724960329023,0.444604,59648.0,59636.0,0.08382]
[1724960329207,0.01541665,59642.0,59639.0,0.52548493]
[1724960329405,0.01541665,59642.0,59641.0,0.083813]
[1724960329707,0.01541665,59642.0,59641.0,0.24849793]
[1724960330496,0.00025144,59647.0,59643.0,0.08381]
[1724960330705,0.00025144,59647.0,59646.0,0.16468493]
[1724960330911,0.00025144,59647.0,59646.0,0.24849093]
[1724960331212,0.00025144,59647.0,59646.0,0.35909093]
[1724960331703,0.00025144,59647.0,59646.0,0.27528493]
[1724960333714,0.00025144,59647.0,59645.0,0.3608]
[1724960333914,0.00025144,59647.0,59645.0,0.52548493]
[1724960334508,0.08405644,59647.0,59645.0,0.52548493]
[1724960336211,0.08405644,59647.0,59645.0,0.3608]
[1724960336906,0.00025144,59647.0,59645.0,0.52548493]
[1724960337115,0.00025144,59647.0,59646.0,0.16468493]
[1724960337703,0.00025144,59647.0,59646.0,0.24849093]
[1724960338905,0.444582,59664.0,59647.0,0.16468493]
[1724960339113,0.06012027,59663.0,59660.0,0.16468493]
[1724960339311,0.06012027,59662.0,59660.0,0.16468493]
[1724960339510,0.06012027,59661.0,59660.0,0.16468493]
[1724960340409,1.16296027,59661.0,59655.0,0.10795144]
[1724960340610,0.06012027,59660.0,59655.0,0.10795144]
[1724960340911,0.42092027,59659.0,59655.0,0.00025144]
[1724960341113,0.06012027,59658.0,59655.0,0.00025144]
[1724960341300,0.083792,59656.0,59655.0,0.00025144]
[1724960341506,0.14391227,59656.0,59655.0,0.00025144]
[1724960341705,1.24679227,59656.0,59655.0,0.00025144]
[1724960341904,1.52300027,59656.0,59645.0,0.3608]
[1724960342107,0.3608,59653.0,59638.0,0.5846]
[1724960342408,0.083811,59643.0,59642.0,0.16468493]
[1724960342606,0.06012027,59643.0,59638.0,0.27238493]
[1724960342810,0.3608,59641.0,59638.0,0.27238493]
[1724960343014,0.06012027,59640.0,59638.0,0.1077]
[1724960343205,0.06012027,59639.0,59638.0,0.1077]
[1724960343616,0.06012027,59639.0,59638.0,0.27238493]
[1724960344312,0.06012027,59639.0,59638.0,0.95620293]
[1724960345306,0.37258447,59662.0,59644.0,0.083809]
[1724960345307,0.06012027,59657.0,59644.0,0.083809]
[1724960345615,0.06012027,59656.0,59654.0,0.16443349]
[1724960345816,0.06012027,59655.0,59654.0,0.16443349]
[1724960346015,0.36,59657.0,59647.0,0.3608]
[1724960346219,0.3608,59652.0,59649.0,0.16443349]
[1724960346416,0.083801,59650.0,59649.0,0.16443349]
[1724960347317,0.083802,59649.0,59645.0,0.00025144]
[1724960347619,0.083804,59648.0,59645.0,0.00025144]
[1724960347816,0.3608,59647.0,59645.0,0.00025144]
[1724960348019,0.083806,59646.0,59645.0,0.00025144]
[1724960348414,0.444606,59647.0,59645.0,0.00025144]
[1724960348812,0.083806,59646.0,59645.0,0.00025144]
[1724960349022,0.586766,59646.0,59645.0,0.00025144]
[1724960349226,0.083816,59639.0,59629.0,0.1176]
[1724960349519,1.297966,59646.0,59637.0,0.16443349]
[1724960349520,0.3608,59641.0,59637.0,0.16443349]
[1724960349712,0.083818,59638.0,59637.0,0.16443349]
[1724960349915,0.3608,59641.0,59637.0,0.16443349]
[1724960350111,0.083812,59643.0,59637.0,0.16443349]
[1724960350112,0.09639647,59643.0,59637.0,0.16443349]
[1724960350311,0.083816,59640.0,59638.0,0.16443349]
[1724960351113,0.08381,59644.0,59638.0,0.16443349]
[1724960352519,0.083811,59643.0,59638.0,0.16443349]
[1724960352823,0.083813,59642.0,59638.0,0.16443349]
[1724960354932,0.3608,59641.0,59633.0,0.00025144]
[1724960355116,0.3608,59634.0,59621.0,0.3608]
[1724960355424,0.3608,59627.0,59621.0,0.3608]
[1724960355726,0.444633,59627.0,59626.0,0.16443349]
[1724960356023,0.083828,59631.0,59626.0,0.16443349]
[1724960356322,0.083828,59631.0,59630.0,0.16443349]
[1724960358120,0.00025144,59632.0,59630.0,0.16443349]
[1724960358321,0.00025144,59632.0,59631.0,0.16443349]
[1724960359925,0.00025144,59632.0,59631.0,0.60906149]
[1724960360716,0.01793122,59633.0,59632.0,0.083826]
[1724960361023,0.04286137,59653.0,59652.0,0.083798]
[1724960361227,0.01780086,59665.0,59652.0,0.29]
[1724960361426,0.3608,59669.0,59659.0,0.3608]
[1724960361735,0.3608,59664.0,59659.0,0.3608]
[1724960362228,0.29,59661.0,59658.0,0.00025144]
[1724960362425,0.3608,59659.0,59658.0,0.00025144]
[1724960362932,0.083799,59651.0,59641.0,0.3608]
[1724960363128,0.29,59650.0,59641.0,0.3608]
[1724960363829,0.29,59650.0,59642.0,0.114]
[1724960364131,0.373801,59650.0,59642.0,0.114]
[1724960364332,0.29,59646.0,59641.0,0.3608]
[1724960364532,0.3608,59644.0,59640.0,0.00025144]
[1724960364738,0.373813,59641.0,59640.0,0.00025144]
[1724960365237,0.876813,59641.0,59640.0,0.00025144]
[1724960365437,0.88939432,59641.0,59640.0,0.00025144]
[1724960365934,0.083826,59632.0,59620.0,0.4748]
[1724960366237,0.3608,59628.0,59620.0,0.4748]
[1724960367139,0.01283276,59630.0,59625.0,0.3608]
[1724960367723,0.00025144,59630.0,59625.0,0.3608]
[1724960368129,0.00025144,59630.0,59625.0,0.444636]
[1724960368738,0.00025144,59630.0,59628.0,0.083832]
[1724960369036,0.00025144,59630.0,59629.0,0.1152]
[1724960369436,0.01804228,59630.0,59629.0,0.70215]
[1724960369623,0.00025144,59630.0,59629.0,1.30215]
[1724960370433,0.00025144,59630.0,59629.0,0.19903]
[1724960370735,0.00025144,59630.0,59629.0,1.30215]
[1724960371135,0.09638532,59648.0,59629.0,1.21832]
[1724960371339,0.36164,59649.0,59644.0,0.3608]
[1724960371639,0.3608,59649.0,59645.0,0.1109]
[1724960372429,0.37886434,59649.0,59645.0,0.1109]
[1724960373137,0.46266834,59649.0,59644.0,0.3608]
[1724960373329,0.083808,59645.0,59641.0,0.00025144]
[1724960373531,0.36,59643.0,59641.0,0.00025144]
[1724960373846,0.083812,59642.0,59641.0,0.00025144]
[1724960374837,1.103,59642.0,59630.0,0.1116]
[1724960375133,0.083821,59636.0,59630.0,0.1116]
[1724960375728,0.29450772,59639.0,59630.0,0.1116]
[1724960375929,0.083821,59636.0,59630.0,0.1116]
[1724960376523,0.29450772,59639.0,59630.0,0.1116]
[1724960376735,0.00025144,59640.0,59636.0,0.3608]
[1724960378438,0.00025144,59640.0,59636.0,0.7216]
[1724960378936,0.00025144,59640.0,59637.0,0.1157]
[1724960379336,0.00025144,59640.0,59639.0,0.083816]
[1724960379942,0.09638032,59652.0,59640.0,0.083814]
[1724960380154,0.083799,59652.0,59643.0,0.3608]
[1724960380438,0.10166885,59652.0,59643.0,0.3608]
[1724960381557,0.0838,59651.0,59643.0,0.3608]
[1724960381742,0.0838,59651.0,59642.0,0.00025144]
[1724960381743,0.083808,59645.0,59642.0,0.00025144]
[1724960383245,0.443811,59643.0,59642.0,0.00025144]
[1724960384338,0.02214135,59645.0,59642.0,0.00025144]
[1724960384543,0.083808,59646.0,59642.0,0.00025144]
[1724960385142,0.083808,59646.0,59643.0,0.3608]
[1724960385345,0.01258132,59651.0,59643.0,0.3608]
[1724960385544,0.02186693,59651.0,59643.0,0.560711]
[1724960385856,0.3608,59652.0,59643.0,0.560711]
[1724960386443,0.083799,59651.0,59643.0,0.4769]
[1724960386649,0.083801,59650.0,59643.0,0.4769]
[1724960387853,0.38282406,59652.0,59643.0,0.4769]
[1724960388048,0.38282406,59652.0,59643.0,0.5868]
[1724960388444,0.02202406,59652.0,59649.0,0.3608]
[1724960388649,0.00025144,59653.0,59650.0,0.083801]
[1724960388853,0.00025144,59653.0,59651.0,0.1096]
[1724960389150,0.12353521,59659.0,59651.0,0.1096]
[1724960389353,0.14535405,59659.0,59651.0,0.1096]
[1724960389549,0.50615405,59659.0,59651.0,0.1096]
[1724960389758,0.50615405,59659.0,59649.0,0.3608]
[1724960389759,0.6508,59654.0,59649.0,0.3608]
[1724960389946,0.01258132,59653.0,59649.0,0.3608]
[1724960390655,0.29,59650.0,59643.0,0.00156]
[1724960390849,0.083811,59643.0,59642.0,0.00025144]
[1724960391652,0.444611,59643.0,59642.0,0.00025144]
[1724960391951,0.083812,59642.0,59631.0,0.1096]
[1724960392250,0.36,59632.0,59624.0,0.3608]
[1724960392455,0.06014038,59631.0,59625.0,0.1125]
[1724960392650,0.37258132,59632.0,59625.0,0.1125]
[1724960392651,0.06014038,59630.0,59625.0,0.1125]
[1724960392846,0.06014038,59631.0,59625.0,0.1125]
[1724960393351,0.06014038,59630.0,59625.0,0.1125]
[1724960393552,0.06014038,59631.0,59625.0,0.1125]
[1724960393954,0.06014038,59630.0,59625.0,0.1125]
[1724960394154,0.06014038,59632.0,59625.0,0.1125]
[1724960394457,0.06014038,59631.0,59625.0,0.1125]
[1724960394649,0.06014038,59632.0,59625.0,0.1125]
[1724960394845,0.06014038,59631.0,59625.0,0.1125]
[1724960395050,0.06014038,59630.0,59629.0,0.3608]
[1724960395749,0.06014038,59630.0,59624.0,0.3608]
[1724960396060,0.36,59625.0,59624.0,0.3608]
[1724960396750,0.42014038,59625.0,59624.0,0.3608]
[1724960397958,0.06014038,59625.0,59624.0,0.3608]
[1724960398557,0.36,59631.0,59624.0,0.3608]
[1724960398753,0.36,59631.0,59622.0,0.00025144]
[1724960398754,0.083839,59623.0,59622.0,0.00025144]
[1724960400356,0.36,59625.0,59622.0,0.00025144]
[1724960400561,0.00025144,59634.0,59623.0,0.3608]
[1724960400766,0.00025144,59634.0,59632.0,0.3608]
[1724960401064,0.00025144,59634.0,59632.0,0.444626]
[1724960401265,0.00025144,59634.0,59633.0,0.190225]
[1724960401266,0.02257164,59634.0,59633.0,0.190225]
[1724960401462,0.02257164,59634.0,59633.0,0.668425]
[1724960401655,0.02257164,59634.0,59633.0,0.5846]
[1724960402361,0.02257164,59634.0,59633.0,0.668425]
[1724960402869,0.01258603,59645.0,59633.0,1.68768]
[1724960403074,0.083742,59693.0,59633.0,1.68768]
[1724960403075,0.01258603,59652.0,59644.0,0.7216]
[1724960403280,0.36,59657.0,59651.0,0.3608]
[1724960403769,0.36,59652.0,59651.0,0.3608]
[1724960403968,0.36,59652.0,59646.0,0.00025144]
[1724960404169,0.0838,59651.0,59646.0,0.00025144]
[1724960404373,0.083801,59650.0,59646.0,0.00025144]
[1724960404860,0.37258603,59652.0,59646.0,0.00025144]
[1724960405364,0.37258603,59652.0,59649.0,0.3608]
[1724960405672,0.37258603,59652.0,59646.0,0.00025144]
[1724960405673,0.36,59652.0,59648.0,0.3608]
[1724960406171,0.37258603,59652.0,59648.0,0.3608]
[1724960406473,0.39455472,59652.0,59648.0,0.3608]
[1724960406964,0.03455472,59652.0,59648.0,0.3608]
[1724960407164,0.02196869,59652.0,59648.0,0.3608]
[1724960407368,0.00025144,59657.0,59649.0,0.50292]
[1724960407566,0.00025144,59657.0,59656.0,0.3608]
[1724960408963,0.02270948,59657.0,59656.0,0.3608]
[1724960410169,0.02270948,59657.0,59649.0,0.1103]
[1724960410469,0.36,59653.0,59648.0,0.3608]
[1724960411275,0.443798,59653.0,59648.0,0.3608]
[1724960411476,0.083798,59653.0,59648.0,0.3608]
[1724960411668,0.3608,59655.0,59648.0,0.3608]
[1724960411863,0.083796,59654.0,59648.0,0.3608]
[1724960412778,0.444596,59654.0,59648.0,0.3608]
[1724960413467,0.0601277,59653.0,59648.0,0.3608]
[1724960413667,0.0601277,59652.0,59648.0,0.3608]
[1724960413970,0.0601277,59651.0,59648.0,0.3608]
[1724960414175,0.0601277,59650.0,59649.0,0.083802]
[1724960414376,0.0601277,59656.0,59651.0,0.083798]
[1724960414676,0.02270948,59657.0,59655.0,0.3608]
[1724960414877,0.06011591,59656.0,59655.0,0.3608]
[1724960415076,0.083777,59667.0,59655.0,1.044594]
[1724960415266,0.08173217,59666.0,59661.0,0.3608]
[1724960415468,0.06011498,59665.0,59662.0,0.1175]
[1724960415773,0.06011498,59664.0,59662.0,0.1175]
[1724960415976,0.083772,59671.0,59662.0,0.1175]
[1724960415977,0.06011498,59663.0,59662.0,0.1175]
[1724960416479,0.06011498,59667.0,59662.0,0.1175]
[1724960416683,0.00025144,59668.0,59666.0,0.3608]
[1724960416974,0.14388591,59667.0,59666.0,0.3608]
[1724960417876,0.14388591,59667.0,59657.0,0.00025144]
[1724960417877,0.083783,59664.0,59657.0,0.00025144]
[1724960418067,0.3687301,59668.0,59661.0,0.3608]
[1724960418068,0.06010891,59663.0,59661.0,0.3608]
[1724960418268,0.06010891,59662.0,59661.0,0.3608]
[1724960418479,0.06010891,59662.0,59661.0,0.444585]
[1724960419172,0.00025144,59668.0,59661.0,0.3608]
[1724960419374,0.00025144,59668.0,59667.0,0.444577]
[1724960419679,0.00025144,59668.0,59667.0,0.3608]
[1724960422383,0.27299521,59674.0,59667.0,0.3608]
[1724960422787,0.083771,59672.0,59667.0,0.3608]
[1724960423685,0.083771,59672.0,59662.0,0.3608]
[1724960423686,0.444571,59672.0,59662.0,0.3608]
[1724960423881,0.08378,59666.0,59662.0,0.3608]
[1724960424583,0.3608,59667.0,59657.0,0.00025144]
[1724960424783,0.37337991,59667.0,59657.0,0.00025144]
[1724960425077,0.08378,59665.0,59657.0,0.00025144]
[1724960426794,0.083782,59664.0,59657.0,0.00025144]
[1724960427093,0.443776,59668.0,59657.0,0.00025144]
[1724960427297,0.36,59668.0,59657.0,0.00025144]
[1724960427595,0.01257991,59671.0,59667.0,0.3608]
[1724960427796,0.03471062,59671.0,59668.0,0.083775]
[1724960427985,0.01257991,59671.0,59670.0,0.083773]
[1724960428293,0.01257991,59671.0,59670.0,0.444573]
[1724960428481,0.68157,59682.0,59674.0,0.083767]
[1724960428684,0.68157,59682.0,59674.0,0.947287]
[1724960428880,0.68157,59682.0,59674.0,1.547287]
[1724960429291,0.68157,59682.0,59681.0,0.083757]
[1724960429493,0.68157,59682.0,59681.0,0.444557]
[1724960429690,0.70407854,59682.0,59681.0,0.444557]